[Event "Turkish Super League 2019"]
[Site "Konya"]
[Date "2019.07.25"]
[Round "10"]
[White "Keler, Faruk"]
[Black "Secer, Ata"]
[Result "0-1"]
[ECO "D77"]
[WhiteElo "2263"]
[BlackElo "2324"]
[Annotator "NA"]
[PlyCount "74"]
[EventDate "2019.07.17"]
[EventType "team-tourn"]
[EventCountry "TUR"]
[SourceTitle "playchess.com"]
[Source "ChessBase"]
[SourceQuality "1"]
[TimeControl "40/5400+30:1800+30"]

1. Nf3 {[%emt 0:00:30]} d5 {[%emt 0:00:30]} 2. g3 {[%emt 0:00:30]} Nf6 {[%emt 0:00:30]} 3. Bg2 {[%emt 0:00:00]} g6 {[%emt 0:00:00]} 4. d4 {[%emt 0:00:00]} Bg7 {[%emt 0:00:00]} 5. O-O {[%emt 0:00:30]} O-O {[%emt 0:00:30]} 6. c4 {[%emt 0:00:30]} dxc4 {[%emt 0:00:00]} 7. Na3 {[%emt 0:00:00]} Nc6 {[%emt 0:00:00]} 8. Nxc4 {[%emt 0:02:00]} Be6 {[%emt 0:00:00]} 9. Nce5 {[%emt 0:05:30]} Bd5 {[%emt 0:00:00]} 10. Bf4 {[%emt 0:03:30]} Nxe5 {[%emt 0:06:30]} 11. Bxe5 {[%emt 0:07:30]} c6 {[%emt 0:00:30]} 12. Qc2 {[%emt 0:02:30]} Be4 {[%emt 0:00:30]} 13. Qb3 {[%emt 0:00:30]} Qb6 {[%emt 0:00:30]} 14. Qa3 {[%emt 0:00:30]} Nd5 {[%emt 0:02:30]} 15. Bxg7 {[%emt 0:01:30]} Kxg7 {[%emt 0:00:30]} 16. e3 {[%emt 0:04:30]} Qb4 {[%emt 0:16:30]} 17. Qxb4 {[%emt 0:01:30]} Nxb4 {[%emt 0:00:30]} 18. Ne5 {[%emt 0:00:30]} Bxg2 {[%emt 0:00:00]} 19. Kxg2 {[%emt 0:00:30]} Rfd8 {[%emt 0:04:00]} 20. Rfc1 {[%emt 0:08:30]} f6 {[%emt 0:05:30]} 21. Nc4 {[%emt 0:03:30]} c5 {[%emt 0:13:30]} 22. dxc5 {[%emt 0:06:30]} Nd3 {[%emt 0:00:30]} 23. Rd1 {[%emt 0:01:30]} Nxc5 {[%emt 0:00:00]} 24. Na5 {[%emt 0:01:30]} Rac8 {[%emt 0:17:00]} 25. Rxd8 {[%emt 0:19:30]} Rxd8 {[%emt 0:00:30]} 26. Rc1 {[%emt 0:00:30]} b6 {[%emt 0:02:30]} 27. Nc4 {[%emt 0:00:30]} Nd3 {[%emt 0:03:30]} 28. Rc3 {[%emt 0:00:30]} f5 {[%emt 0:10:08]} 29. Kf1 {[%emt 0:07:30]} e5 {[%emt 0:04:41]} 30. b3 {[%emt 0:06:39]} e4 {[%emt 0:00:14]} 31. Na3 {[%emt 0:00:46]} Ne5 {[%emt 0:03:11]} 32. Rc7+ {[%emt 0:00:35]} Kh6 {[%emt 0:01:48]} 33. Ke2 {[%emt 0:05:23]} Nf3 {[%emt 0:00:42]} 34. Nb1 {[%emt 0:00:21]} Nxh2 {[%emt 0:00:54]} 35. Rxa7 {[%emt 0:01:12]} Nf3 {[%emt 0:01:43]} 36. a4 {[%emt 0:01:40]} Rd3 {[%emt 0:01:11]} 37. Na3 {[%emt 0:03:31]} Rd2+ {[%emt 0:00:16]} 0-1

[Event "Turkish Super League 2019"]
[Site "Konya"]
[Date "2019.07.25"]
[Round "10"]
[White "Yaran, Siar"]
[Black "Ozer, Omer Faruk"]
[Result "0-1"]
[ECO "B31"]
[WhiteElo "2197"]
[BlackElo "2369"]
[Annotator "NA"]
[PlyCount "86"]
[EventDate "2019.07.17"]
[EventType "team-tourn"]
[EventCountry "TUR"]
[SourceTitle "playchess.com"]
[Source "ChessBase"]
[SourceQuality "1"]
[TimeControl "40/5400+30:1800+30"]

1. e4 {[%emt 0:00:30]} c5 {[%emt 0:01:30]} 2. Nf3 {[%emt 0:07:30]} Nc6 {[%emt 0:00:30]} 3. Bb5 {[%emt 0:01:30]} g6 {[%emt 0:02:30]} 4. O-O {[%emt 0:00:30]} Bg7 {[%emt 0:00:30]} 5. Bxc6 {[%emt 0:00:30]} dxc6 {[%emt 0:01:30]} 6. d3 {[%emt 0:02:30]} e5 {[%emt 0:11:30]} 7. Be3 {[%emt 0:00:30]} b6 {[%emt 0:00:30]} 8. a4 {[%emt 0:00:30]} a5 {[%emt 0:00:30]} 9. Nbd2 {[%emt 0:01:30]} f6 {[%emt 0:16:30]} 10. Nc4 {[%emt 0:00:30]} Be6 {[%emt 0:01:30]} 11. Nfd2 {[%emt 0:00:30]} Nh6 {[%emt 0:00:00]} 12. b4 {[%emt 0:05:30]} axb4 {[%emt 0:06:00]} 13. a5 {[%emt 0:00:30]} bxa5 {[%emt 0:01:30]} 14. Bxc5 {[%emt 0:00:30]} Bf8 {[%emt 0:00:30]} 15. Bb6 {[%emt 0:07:30]} Qb8 {[%emt 0:00:30]} 16. Ra4 {[%emt 0:01:30]} Be7 {[%emt 0:08:30]} 17. Qa1 {[%emt 0:01:30]} O-O {[%emt 0:05:30]} 18. Rxa5 {[%emt 0:00:30]} Qb7 {[%emt 0:03:30]} 19. Ba7 {[%emt 0:11:30]} Nf7 {[%emt 0:15:30]} 20. Qa2 {[%emt 0:03:30]} Bd8 {[%emt 0:06:16]} 21. Ra4 {[%emt 0:04:30]} Qb5 {[%emt 0:06:18]} 22. Ra1 {[%emt 0:04:30]} f5 {[%emt 0:00:34]} 23. exf5 {[%emt 0:13:30]} gxf5 {[%emt 0:00:30]} 24. Qb2 {[%emt 0:00:30]} c5 {[%emt 0:04:20]} 25. Nxe5 {[%emt 0:06:30]} Bf6 {[%emt 0:00:06]} 26. f4 {[%emt 0:00:30]} Nxe5 {[%emt 0:03:12]} 27. fxe5 {[%emt 0:00:30]} Bg5 {[%emt 0:00:00]} 28. Nf3 {[%emt 0:00:00]} Be3+ {[%emt 0:00:00]} 29. Kf1 {[%emt 0:09:26]} Qb7 {[%emt 0:01:25]} 30. c3 {[%emt 0:04:32]} b3 {[%emt 0:00:18]} 31. R1a3 {[%emt 0:04:54]} Rfd8 {[%emt 0:00:42]} 32. Ke2 {[%emt 0:01:11]} f4 {[%emt 0:00:33]} 33. c4 {[%emt 0:01:06]} Bf5 {[%emt 0:01:03]} 34. d4 {[%emt 0:05:21]} cxd4 {[%emt 0:00:45]} 35. Qxb3 {[%emt 0:00:58]} Qxb3 {[%emt 0:00:30]} 36. Rxb3 {[%emt 0:00:00]} Bc2 {[%emt 0:00:00]} 37. Rxe3 {[%emt 0:00:45]} Bxa4 {[%emt 0:01:02]} 38. Re4 {[%emt 0:00:22]} d3+ {[%emt 0:01:20]} 39. Kd2 {[%emt 0:00:30]} Rxa7 {[%emt 0:00:00]} 40. Nd4 {[%emt 0:00:00]} Be8 {[%emt 0:00:00]} 41. Rxf4 {[%emt 0:01:55]} Bg6 {[%emt 0:01:06]} 42. e6 {[%emt 0:01:30]} Ra2+ {[%emt 0:00:30]} 43. Kc3 {[%emt 0:06:30]} Rc2+ {[%emt 0:00:30]} 0-1

[Event "Turkish Super League 2019"]
[Site "Konya"]
[Date "2019.07.25"]
[Round "10"]
[White "Akdogan, Alperen"]
[Black "Ali Marandi, Cemil Can"]
[Result "0-1"]
[ECO "D93"]
[WhiteElo "2193"]
[BlackElo "2527"]
[Annotator "ChessBase"]
[PlyCount "62"]
[EventDate "2019.07.17"]
[EventType "team-tourn"]
[EventCountry "TUR"]
[SourceTitle "playchess.com"]
[Source "ChessBase"]
[SourceQuality "1"]
[TimeControl "40/5400+30:1800+30"]

1. d4 {[%emt 0:00:30]} d5 {[%emt 0:00:30]} 2. Nf3 {[%emt 0:00:30]} Nf6 {[%emt 0:00:00]} 3. c4 {[%emt 0:00:30]} c6 {[%emt 0:00:00]} 4. Qc2 {[%emt 0:01:30]} g6 {[%emt 0:00:30]} 5. Bf4 {[%emt 0:00:00]} Bg7 {[%emt 0:00:00]} 6. e3 {[%emt 0:00:00]} O-O {[%emt 0:00:00]} 7. Nc3 {[%emt 0:00:30]} Na6 {[%emt 0:00:00]} 8. a3 {[%emt 0:01:30]} c5 {[%emt 0:00:00]} 9. Rd1 {[%emt 0:11:30]} Qa5 {[%emt 0:00:30]} 10. cxd5 {[%emt 0:24:30]} Nxd5 {[%emt 0:20:30]} 11. Be5 {[%emt 0:03:30]} cxd4 {[%emt 0:00:30]} 12. Bxg7 {[%emt 0:13:30]} Kxg7 {[%emt 0:00:30]} 13. Rxd4 {[%emt 0:00:30]} Nxc3 {[%emt 0:00:00]} 14. Qxc3 {[%emt 0:00:30]} Qxc3+ {[%emt 0:01:00]} 15. bxc3 {[%emt 0:00:00]} Nc5 {[%emt 0:00:00]} 16. Be2 {[%emt 0:01:00]} b6 {[%emt 0:00:00]} 17. O-O {[%emt 0:01:30]} Bb7 {[%emt 0:07:30]} 18. Rb4 {[%emt 0:18:11]} Rfd8 {[%emt 0:05:30]} 19. a4 {[%emt 0:02:10]} Rac8 {[%emt 0:04:30]} 20. Ra1 {[%emt 0:02:42]} Ba6 {[%emt 0:18:30]} 21. Bxa6 {[%emt 0:03:52]} Nxa6 {[%emt 0:01:30]} 22. Rd4 {[%emt 0:00:03]} Nc5 {[%emt 0:00:30]} 23. Rxd8 {[%emt 0:01:30]} Rxd8 {[%emt 0:00:30]} 24. Nd4 {[%emt 0:00:02]} Ne4 {[%emt 0:08:30]} 25. f3 {[%emt 0:09:32]} Nxc3 {[%emt 0:00:30]} 26. a5 {[%emt 0:00:14]} b5 {[%emt 0:01:30]} 27. Nc6 {[%emt 0:01:27]} Rd6 {[%emt 0:03:30]} 28. Nxa7 {[%emt 0:01:03]} b4 {[%emt 0:00:30]} 29. Nc8 {[%emt 0:00:32]} Rc6 {[%emt 0:00:30]} 30. Nxe7 {[%emt 0:01:31]} Ra6 {[%emt 0:00:00]} 31. e4 {[%emt 0:00:37]} b3 {[%emt 0:00:00]} 0-1

[Event "Turkish Super League 2019"]
[Site "Konya"]
[Date "2019.07.25"]
[Round "10"]
[White "Ozkan, Ervin"]
[Black "Tezcan, Emre"]
[Result "0-1"]
[ECO "A47"]
[WhiteElo "2175"]
[BlackElo "2082"]
[Annotator "NA"]
[PlyCount "86"]
[EventDate "2019.07.17"]
[EventType "team-tourn"]
[EventCountry "TUR"]
[SourceTitle "playchess.com"]
[Source "ChessBase"]
[SourceQuality "1"]
[TimeControl "40/5400+30:1800+30"]

1. d4 {[%emt 0:01:30]} Nf6 {[%emt 0:00:30]} 2. Nf3 {[%emt 0:00:30]} e6 {[%emt 0:00:00]} 3. Bf4 {[%emt 0:00:30]} b6 {[%emt 0:00:00]} 4. e3 {[%emt 0:01:30]} Bb7 {[%emt 0:00:00]} 5. Nbd2 {[%emt 0:00:00]} Be7 {[%emt 0:01:00]} 6. h3 {[%emt 0:00:00]} O-O {[%emt 0:00:30]} 7. Bd3 {[%emt 0:00:30]} d6 {[%emt 0:00:00]} 8. O-O {[%emt 0:00:30]} Nbd7 {[%emt 0:00:00]} 9. Qe2 {[%emt 0:01:30]} Re8 {[%emt 0:00:30]} 10. Bh2 {[%emt 0:04:30]} Bf8 {[%emt 0:02:30]} 11. Rfd1 {[%emt 0:00:30]} c5 {[%emt 0:05:30]} 12. c3 {[%emt 0:01:30]} Qc7 {[%emt 0:07:30]} 13. a4 {[%emt 0:00:30]} a6 {[%emt 0:04:30]} 14. e4 {[%emt 0:06:30]} e5 {[%emt 0:00:30]} 15. dxe5 {[%emt 0:00:30]} dxe5 {[%emt 0:00:30]} 16. Bc4 {[%emt 0:00:30]} g6 {[%emt 0:04:30]} 17. g4 {[%emt 0:28:30]} Re7 {[%emt 0:11:30]} 18. Bg3 {[%emt 0:05:30]} h6 {[%emt 0:04:30]} 19. Ne1 {[%emt 0:01:30]} Bg7 {[%emt 0:04:30]} 20. Ng2 {[%emt 0:01:30]} Nf8 {[%emt 0:00:30]} 21. f3 {[%emt 0:09:30]} Ne6 {[%emt 0:02:30]} 22. Nf1 {[%emt 0:05:30]} Nf4 {[%emt 0:05:30]} 23. Nxf4 {[%emt 0:11:05]} exf4 {[%emt 0:00:00]} 24. Bh2 {[%emt 0:00:21]} Qc6 {[%emt 0:25:00]} 25. Bxf4 {[%emt 0:06:14]} Nxe4 {[%emt 0:07:01]} 26. Bh2 {[%emt 0:11:11]} Ng5 {[%emt 0:02:14]} 27. Qg2 {[%emt 0:00:56]} Nxf3+ {[%emt 0:02:08]} 28. Kh1 {[%emt 0:00:30]} Qf6 {[%emt 0:05:02]} 29. Bd5 {[%emt 0:00:39]} Bxd5 {[%emt 0:00:17]} 30. Rxd5 {[%emt 0:00:05]} Rae8 {[%emt 0:01:35]} 31. Rd6 {[%emt 0:00:27]} Re6 {[%emt 0:00:48]} 32. Rxe6 {[%emt 0:00:41]} Rxe6 {[%emt 0:00:30]} 33. Bg3 {[%emt 0:00:00]} Ng5 {[%emt 0:00:54]} 34. Bh4 {[%emt 0:00:52]} Qf4 {[%emt 0:00:48]} 35. Bg3 {[%emt 0:00:40]} Qc4 {[%emt 0:01:00]} 36. Nd2 {[%emt 0:00:43]} Qd3 {[%emt 0:00:11]} 37. Rf1 {[%emt 0:00:33]} Re2 {[%emt 0:00:40]} 38. Rf2 {[%emt 0:00:31]} Rxf2 {[%emt 0:00:37]} 39. Qxf2 {[%emt 0:00:04]} Nxh3 {[%emt 0:00:22]} 40. Qh2 {[%emt 0:00:00]} Ng5 {[%emt 0:00:00]} 41. Qg2 {[%emt 0:01:58]} Qc2 {[%emt 0:04:23]} 42. Nc4 {[%emt 0:14:19]} Qd1+ {[%emt 0:01:30]} 43. Kh2 {[%emt 0:00:19]} Qxg4 {[%emt 0:00:30]} 0-1

[Event "Turkish Super League 2019"]
[Site "Konya"]
[Date "2019.07.25"]
[Round "10"]
[White "Aydin, Hakan Arda"]
[Black "Annaberdiyev, Babageldi"]
[Result "0-1"]
[ECO "B33"]
[WhiteElo "1956"]
[BlackElo "2244"]
[Annotator "NA"]
[PlyCount "94"]
[EventDate "2019.07.17"]
[EventType "team-tourn"]
[EventCountry "TUR"]
[SourceTitle "playchess.com"]
[Source "ChessBase"]
[SourceQuality "1"]
[TimeControl "40/5400+30:1800+30"]

1. e4 {[%emt 0:00:30]} c5 {[%emt 0:01:30]} 2. Nf3 {[%emt 0:00:30]} Nc6 {[%emt 0:00:30]} 3. d4 {[%emt 0:00:00]} cxd4 {[%emt 0:00:30]} 4. Nxd4 {[%emt 0:00:00]} Nf6 {[%emt 0:00:00]} 5. Nc3 {[%emt 0:00:00]} e5 {[%emt 0:00:00]} 6. Ndb5 {[%emt 0:03:00]} d6 {[%emt 0:00:30]} 7. Bg5 {[%emt 0:00:30]} a6 {[%emt 0:00:30]} 8. Na3 {[%emt 0:00:00]} b5 {[%emt 0:00:00]} 9. Nd5 {[%emt 0:01:00]} Be7 {[%emt 0:00:00]} 10. Bxf6 {[%emt 0:00:30]} Bxf6 {[%emt 0:00:00]} 11. c3 {[%emt 0:00:30]} O-O {[%emt 0:00:00]} 12. Nc2 {[%emt 0:01:30]} Bg5 {[%emt 0:00:30]} 13. a4 {[%emt 0:01:30]} bxa4 {[%emt 0:00:30]} 14. Rxa4 {[%emt 0:00:30]} a5 {[%emt 0:00:00]} 15. Bc4 {[%emt 0:02:30]} Rb8 {[%emt 0:00:00]} 16. b3 {[%emt 0:01:30]} Kh8 {[%emt 0:00:30]} 17. Nce3 {[%emt 0:07:30]} g6 {[%emt 0:02:30]} 18. O-O {[%emt 0:06:30]} f5 {[%emt 0:19:30]} 19. exf5 {[%emt 0:02:30]} gxf5 {[%emt 0:00:30]} 20. Qh5 {[%emt 0:01:30]} e4 {[%emt 0:03:30]} 21. f4 {[%emt 0:08:30]} exf3 {[%emt 0:03:30]} 22. Rxf3 {[%emt 0:00:30]} Rb7 {[%emt 0:00:00]} 23. h4 {[%emt 0:27:30]} Bxe3+ {[%emt 0:01:00]} 24. Nxe3 {[%emt 0:00:00]} Ne5 {[%emt 0:00:30]} 25. Rf4 {[%emt 0:01:00]} Qb6 {[%emt 0:09:30]} 26. Rd4 {[%emt 0:02:30]} Rg7 {[%emt 0:00:30]} 27. Bd5 {[%emt 0:03:30]} Bd7 {[%emt 0:13:30]} 28. Ra2 {[%emt 0:03:30]} a4 {[%emt 0:10:30]} 29. bxa4 {[%emt 0:05:30]} f4 {[%emt 0:07:30]} 30. Rf2 {[%emt 0:04:25]} Ng6 {[%emt 0:01:30]} 31. Nc4 {[%emt 0:02:02]} Qc5 {[%emt 0:02:30]} 32. Nxd6 {[%emt 0:08:13]} Qxd6 {[%emt 0:02:30]} 33. Bf7 {[%emt 0:00:15]} Qe7 {[%emt 0:01:30]} 34. Bxg6 {[%emt 0:00:32]} Rxg6 {[%emt 0:00:30]} 35. Rdxf4 {[%emt 0:01:28]} Rxf4 {[%emt 0:00:30]} 36. Rxf4 {[%emt 0:00:18]} Bc6 {[%emt 0:00:00]} 37. Rg4 {[%emt 0:05:49]} Qe2 {[%emt 0:05:31]} 38. Rxg6 {[%emt 0:00:48]} Qxh5 {[%emt 0:00:30]} 39. Rxc6 {[%emt 0:00:04]} Qd1+ {[%emt 0:00:00]} 40. Kh2 {[%emt 0:01:01]} Qxa4 {[%emt 0:00:26]} 41. Rc8+ {[%emt 0:30:30]} Kg7 {[%emt 0:00:00]} 42. Rc7+ {[%emt 0:00:00]} Kh6 {[%emt 0:00:03]} 43. Kh3 {[%emt 0:00:00]} Qe4 {[%emt 0:00:30]} 44. g3 {[%emt 0:00:00]} Qh1+ {[%emt 0:01:30]} 45. Kg4 {[%emt 0:00:00]} Kg6 {[%emt 0:00:00]} 46. Rc5 {[%emt 0:00:00]} Qd1+ {[%emt 0:01:00]} 47. Kh3 {[%emt 0:00:00]} Qf1+ {[%emt 0:00:00]} 0-1

[Event "Turkish Super League 2019"]
[Site "Konya"]
[Date "2019.07.26"]
[Round "11"]
[White "Ali Marandi, Cemil Can"]
[Black "Tanriverdi, Enes"]
[Result "1-0"]
[ECO "D10"]
[WhiteElo "2527"]
[BlackElo "2374"]
[Annotator "ChessBase"]
[PlyCount "48"]
[EventDate "2019.07.17"]
[EventType "team-tourn"]
[EventCountry "TUR"]
[SourceTitle "playchess.com"]
[Source "ChessBase"]
[SourceQuality "1"]
[TimeControl "40/5400+30:1800+30"]

1. d4 d5 2. c4 c6 3. cxd5 cxd5 4. Bg5 Qb6 5. Nc3 e6 6. Qd2 Nc6 7. e3 Bd7 8. Bd3 Bd6 9. Nge2 Nge7 10. O-O O-O 11. Rad1 h6 12. Bh4 f5 13. Bg3 Bxg3 14. hxg3 Rad8 15. Bb1 Na5 16. b3 Be8 17. Nf4 g5 18. Nd3 Nac6 19. Rc1 Nc8 20. Nc5 Rf6 21. g4 fxg4 22. e4 Bf7 23. e5 Rf4 {[%emt 1:12:30]} 24. Ne2 {[%emt 0:54:00]} Qb4 {[%emt 0:00:30]} 1-0

[Event "Turkish Super League 2019"]
[Site "Konya"]
[Date "2019.07.26"]
[Round "11"]
[White "Asadli, Vugar"]
[Black "Rasulov, Vugar"]
[Result "1/2-1/2"]
[ECO "D85"]
[WhiteElo "2502"]
[BlackElo "2534"]
[Annotator "ChessBase"]
[PlyCount "62"]
[EventDate "2019.07.17"]
[EventType "team-tourn"]
[EventCountry "TUR"]
[SourceTitle "playchess.com"]
[Source "ChessBase"]
[SourceQuality "1"]
[TimeControl "40/5400+30:1800+30"]

1. d4 {[%emt 0:01:30]} Nf6 {[%emt 0:00:30]} 2. c4 {[%emt 0:00:00]} g6 {[%emt 0:00:30]} 3. Nc3 {[%emt 0:02:00]} d5 {[%emt 0:00:30]} 4. cxd5 {[%emt 0:02:30]} Nxd5 {[%emt 0:00:30]} 5. e4 {[%emt 0:01:30]} Nxc3 {[%emt 0:00:30]} 6. bxc3 {[%emt 0:00:30]} Bg7 {[%emt 0:00:00]} 7. Nf3 {[%emt 0:01:30]} O-O {[%emt 0:05:00]} 8. Be2 {[%emt 0:04:30]} c5 {[%emt 0:00:00]} 9. Be3 {[%emt 0:01:30]} b6 {[%emt 0:00:00]} 10. Rc1 {[%emt 0:01:30]} e6 {[%emt 0:00:30]} 11. O-O {[%emt 0:01:30]} Bb7 {[%emt 0:00:00]} 12. Qd3 {[%emt 0:03:30]} Nd7 {[%emt 0:02:00]} 13. Bg5 {[%emt 0:02:30]} Qc7 {[%emt 0:00:00]} 14. Rfd1 {[%emt 0:00:00]} Nf6 {[%emt 0:00:00]} 15. Nd2 {[%emt 0:02:00]} Rac8 {[%emt 0:00:30]} 16. e5 {[%emt 0:00:30]} Nd7 {[%emt 0:00:30]} 17. Ne4 {[%emt 0:00:30]} f6 {[%emt 0:00:00]} 18. exf6 {[%emt 0:00:30]} Nxf6 {[%emt 0:00:00]} 19. Nxf6+ {[%emt 0:01:30]} Bxf6 {[%emt 0:00:30]} 20. Bh6 {[%emt 0:00:00]} Bg7 {[%emt 0:00:00]} 21. Qh3 {[%emt 0:00:00]} Bd5 {[%emt 0:00:00]} 22. c4 {[%emt 0:00:30]} Qf7 {[%emt 0:00:30]} 23. cxd5 {[%emt 0:00:30]} Qxf2+ {[%emt 0:00:30]} 24. Kh1 {[%emt 0:00:30]} Qxe2 {[%emt 0:00:00]} 25. Re1 {[%emt 0:00:30]} Qf2 {[%emt 0:00:00]} 26. Qxe6+ {[%emt 0:00:00]} Qf7 {[%emt 0:00:00]} 27. Bxg7 {[%emt 0:01:00]} Kxg7 {[%emt 0:00:00]} 28. Qxf7+ {[%emt 0:00:30]} Rxf7 {[%emt 0:00:30]} 29. Kg1 {[%emt 0:00:00]} Rd7 {[%emt 0:00:00]} 30. dxc5 {[%emt 0:00:00]} Rxc5 {[%emt 0:00:00]} 31. Rxc5 {[%emt 0:00:30]} bxc5 {[%emt 0:00:30]} 1/2-1/2

[Event "Turkish Super League 2019"]
[Site "Konya"]
[Date "2019.07.26"]
[Round "11"]
[White "Firat, Burak"]
[Black "Yurtseven, Melih"]
[Result "0-1"]
[ECO "C02"]
[WhiteElo "2463"]
[BlackElo "2381"]
[Annotator "ChessBase"]
[PlyCount "196"]
[EventDate "2019.07.17"]
[EventType "team-tourn"]
[EventCountry "TUR"]
[SourceTitle "playchess.com"]
[Source "ChessBase"]
[SourceQuality "1"]
[TimeControl "40/5400+30:1800+30"]

1. e4 e6 2. d4 d5 3. e5 c5 4. c3 Qb6 5. Nf3 Nc6 6. Be2 cxd4 7. cxd4 Nh6 8. Bxh6 Qxb2 9. Nbd2 gxh6 10. O-O Qb6 11. Rb1 Qd8 12. Nb3 b6 13. Nc1 Ne7 14. h4 {[%emt 1:06:00]} Bd7 {[%emt 1:00:00]} 15. Nd3 {[%emt 0:04:30]} Nf5 {[%emt 0:06:30]} 16. g3 {[%emt 0:01:30]} Rg8 {[%emt 0:00:30]} 17. Kh2 {[%emt 0:05:30]} Rg4 {[%emt 0:00:30]} 18. Nf4 {[%emt 0:00:30]} Rxf4 {[%emt 0:07:30]} 19. gxf4 {[%emt 0:00:30]} Nxh4 {[%emt 0:00:30]} 20. Bd3 {[%emt 0:01:30]} Rc8 {[%emt 0:04:30]} 21. Kg3 {[%emt 0:01:14]} Ng6 {[%emt 0:01:46]} 22. Rc1 {[%emt 0:01:24]} Rb8 {[%emt 0:09:09]} 23. Qd2 {[%emt 0:05:42]} a5 {[%emt 0:03:16]} 24. a4 {[%emt 0:03:18]} Bxa4 {[%emt 0:02:50]} 25. f5 {[%emt 0:00:09]} Ne7 {[%emt 0:00:28]} 26. fxe6 {[%emt 0:02:41]} fxe6 {[%emt 0:00:02]} 27. Bxh7 {[%emt 0:00:06]} b5 {[%emt 0:00:55]} 28. Ra1 {[%emt 0:01:14]} Kd7 {[%emt 0:02:16]} 29. Nh4 {[%emt 0:04:16]} Nc6 {[%emt 0:00:44]} 30. f4 {[%emt 0:00:16]} Bb4 {[%emt 0:01:25]} 31. Qd3 {[%emt 0:01:37]} Be7 {[%emt 0:01:29]} 32. Nf3 {[%emt 0:01:42]} Nb4 {[%emt 0:00:15]} 33. Qb1 {[%emt 0:01:05]} Rc8 {[%emt 0:01:15]} 34. f5 {[%emt 0:00:25]} Bc2 {[%emt 0:00:32]} 35. fxe6+ {[%emt 0:01:03]} Kxe6 {[%emt 0:00:02]} 36. Qc1 {[%emt 0:00:04]} Qf8 {[%emt 0:00:00]} 37. Ng5+ {[%emt 0:00:00]} Bxg5 {[%emt 0:00:00]} 38. Rxf8 {[%emt 0:00:00]} Rxf8 {[%emt 0:00:00]} 39. Qa3 {[%emt 0:00:00]} Bxh7 {[%emt 0:00:00]} 40. Qxa5 {[%emt 0:00:00]} Bf4+ {[%emt 0:00:00]} 41. Kh4 {[%emt 0:08:14]} Bg5+ {[%emt 0:10:06]} 42. Kg3 {[%emt 0:00:30]} Rg8 {[%emt 0:05:03]} 43. Qb6+ {[%emt 0:05:30]} Kf5 {[%emt 0:03:04]} 44. Kf3 {[%emt 0:06:55]} Bg6 {[%emt 0:10:53]} 45. Rh1 {[%emt 0:02:41]} Rc8 {[%emt 0:05:16]} 46. Rf1 {[%emt 0:06:29]} Bh5+ {[%emt 0:01:30]} 47. Kg3+ {[%emt 0:00:43]} Ke4 {[%emt 0:00:15]} 48. Re1+ {[%emt 0:00:00]} Kd3 {[%emt 0:00:51]} 49. Qxb5+ {[%emt 0:00:40]} Rc4 {[%emt 0:00:02]} 50. e6 {[%emt 0:01:37]} Kd2 {[%emt 0:00:55]} 51. Rf1 {[%emt 0:02:37]} Be2 {[%emt 0:00:21]} 52. Rf2 {[%emt 0:00:54]} Ke1 {[%emt 0:00:18]} 53. Kg2 {[%emt 0:01:15]} Bd3 {[%emt 0:00:42]} 54. Qa5 {[%emt 0:01:32]} Be4+ {[%emt 0:00:30]} 55. Kg1 {[%emt 0:00:28]} Be3 {[%emt 0:00:31]} 56. Qa1+ {[%emt 0:00:57]} Rc1 {[%emt 0:00:13]} 57. Qxc1+ {[%emt 0:00:17]} Bxc1 {[%emt 0:00:30]} 58. e7 {[%emt 0:00:30]} Be3 {[%emt 0:00:30]} 59. e8=Q {[%emt 0:00:30]} Bxf2+ {[%emt 0:00:30]} 60. Kh2 {[%emt 0:00:30]} Nc2 {[%emt 0:00:00]} 61. Qc6 {[%emt 0:00:00]} Be3 {[%emt 0:00:00]} 62. Qc3+ {[%emt 0:00:49]} Ke2 {[%emt 0:00:19]} 63. Qb2 {[%emt 0:00:06]} Bxd4 {[%emt 0:00:07]} 64. Qb5+ {[%emt 0:00:05]} Ke1 {[%emt 0:00:49]} 65. Qa5+ {[%emt 0:00:50]} Kd1 {[%emt 0:00:13]} 66. Qa8 {[%emt 0:00:29]} Be3 {[%emt 0:00:27]} 67. Qc6 {[%emt 0:00:40]} Kd2 {[%emt 0:00:51]} 68. Qa8 {[%emt 0:00:07]} h5 {[%emt 0:00:33]} 69. Qa5+ {[%emt 0:00:09]} Kd1 {[%emt 0:00:55]} 70. Qa8 {[%emt 0:00:05]} Ne1 {[%emt 0:00:20]} 71. Kg3 {[%emt 0:01:32]} Ke2 {[%emt 0:00:26]} 72. Qa6+ {[%emt 0:00:32]} Nd3 {[%emt 0:00:29]} 73. Qa2+ {[%emt 0:00:36]} Bd2 {[%emt 0:00:13]} 74. Kh4 {[%emt 0:00:24]} Bf3 {[%emt 0:00:46]} 75. Kg3 {[%emt 0:00:51]} Nb4 {[%emt 0:01:33]} 76. Qb2 {[%emt 0:00:18]} Be4 {[%emt 0:00:51]} 77. Kh4 {[%emt 0:00:13]} Nd3 {[%emt 0:01:02]} 78. Qa2 {[%emt 0:00:04]} Nf4 {[%emt 0:00:00]} 79. Qb2 {[%emt 0:00:44]} Ke3 {[%emt 0:00:07]} 80. Qa3+ {[%emt 0:00:31]} Nd3 {[%emt 0:00:22]} 81. Kxh5 {[%emt 0:00:20]} d4 {[%emt 0:00:12]} 82. Kg4 {[%emt 0:00:24]} Bc3 {[%emt 0:00:11]} 83. Qa7 {[%emt 0:01:49]} Ne5+ {[%emt 0:00:11]} 84. Kg5 {[%emt 0:00:07]} Bd2 {[%emt 0:00:45]} 85. Kf6 {[%emt 0:01:08]} Nf3 {[%emt 0:00:14]} 86. Qc5 {[%emt 0:00:00]} Bc3 {[%emt 0:00:35]} 87. Ke6 {[%emt 0:00:12]} Kd2 {[%emt 0:00:38]} 88. Ke7 {[%emt 0:01:09]} Bc2 {[%emt 0:00:55]} 89. Qh5 {[%emt 0:00:41]} Ne1 {[%emt 0:00:30]} 90. Qg5+ {[%emt 0:00:19]} Kd1 {[%emt 0:00:01]} 91. Qh5+ {[%emt 0:00:01]} Kc1 {[%emt 0:00:11]} 92. Qg5+ {[%emt 0:00:25]} Kb2 {[%emt 0:00:27]} 93. Qb5+ {[%emt 0:00:30]} Bb3 {[%emt 0:00:12]} 94. Qe2+ {[%emt 0:00:00]} Ka3 {[%emt 0:00:33]} 95. Qe5 {[%emt 0:00:31]} Nc2 {[%emt 0:00:36]} 96. Kd8 {[%emt 0:00:43]} Nb4 {[%emt 0:00:36]} 97. Kc7 {[%emt 0:01:32]} Kb2 {[%emt 0:00:30]} 98. Qh2+ {[%emt 0:00:00]} Bc2 {[%emt 0:00:04]} 0-1